bitfinex/quotes_ETHUSD_20250807
["timestamp","ask_amount","ask_price","bid_price","bid_amount"]
[1754533398067,0.9411,3675.9,3675.8,2.72049621]
[1754533398263,0.9411,3675.9,3675.6,2.72064424]
[1754533398500,0.4778,3675.9,3675.6,2.72064424]
[1754533398692,0.136,3676.1,3675.6,2.72064424]
[1754533398868,0.4778,3675.9,3675.6,2.72064424]
[1754533399283,0.9411,3675.9,3675.7,2.72053351]
[1754533399572,0.9411,3675.9,3675.6,2.72062954]
[1754533399886,0.9411,3675.8,3675.4,0.138]
[1754533400085,0.136,3675.9,3675.4,2.85872765]
[1754533400288,0.136,3675.9,3675.5,2.72071586]
[1754533400289,0.9431,3675.7,3675.5,2.72071586]
[1754533400693,0.9431,3675.7,3675.6,2.72064424]
[1754533400880,0.9431,3675.7,3675.5,2.72071238]
[1754533401365,0.4683,3675.6,3675.5,2.72071238]
[1754533402179,0.9431,3675.6,3675.4,2.85879114]
[1754533402507,0.4683,3675.5,3675.4,2.85879114]
[1754533403308,0.4748,3675.6,3675.5,2.72071826]
[1754533403507,0.4748,3675.6,3675.4,2.85878302]
[1754533403715,0.9431,3675.6,3675.4,2.85878302]
[1754533404011,0.9431,3675.6,3675.5,2.72071826]
[1754533405816,0.4748,3675.8,3675.6,2.72063296]
[1754533405982,0.136,3675.9,3675.4,0.138]
[1754533406179,0.136,3675.9,3675.5,2.72071826]
[1754533406482,0.4683,3675.8,3675.5,2.72071826]
[1754533406810,0.9431,3675.8,3675.5,2.72071826]
[1754533407012,0.4748,3675.8,3675.5,2.72071826]
[1754533407317,0.9431,3675.7,3675.5,2.72071826]
[1754533407814,0.9431,3675.7,3675.6,2.72064424]
[1754533407995,0.9431,3675.7,3675.5,2.72070224]
[1754533408913,0.9431,3675.7,3675.4,0.138]
[1754533408914,0.4683,3675.7,3675.6,2.72064424]
[1754533409614,0.4683,3675.7,3675.5,2.72069881]
[1754533409912,0.4683,3675.7,3675.6,2.72064424]
[1754533413126,0.4683,3675.7,3675.5,2.72270951]
[1754533413332,0.9431,3675.7,3675.5,2.72270951]
[1754533413492,0.4748,3675.7,3675.5,2.72270951]
[1754533413697,0.4683,3675.6,3675.5,2.72270951]
[1754533413917,0.4683,3675.6,3675.5,0.002]
[1754533414130,1.0791,3675.6,3675.5,0.002]
[1754533414516,0.136,3675.6,3675.5,2.72271826]
[1754533414749,0.001,3675.8,3675.7,2.72057023]
[1754533415399,0.4693,3675.8,3675.7,2.72057023]
[1754533415934,0.4693,3675.8,3675.6,2.72063824]
[1754533416235,0.4693,3675.8,3675.5,2.72270265]
[1754533416236,0.4683,3675.7,3675.5,2.72270265]
[1754533416412,0.9431,3675.7,3675.5,2.72270265]
[1754533416610,0.9431,3675.6,3675.5,0.002]
[1754533416816,1.0791,3675.6,3675.5,0.002]
[1754533417829,0.136,3675.6,3675.5,3.20971826]
[1754533418204,0.001,3675.8,3675.5,2.72271826]
[1754533418406,0.4693,3675.8,3675.5,2.72271826]
[1754533418627,0.4693,3675.8,3675.6,2.72057712]
[1754533422541,0.4693,3675.8,3675.7,2.72057023]
[1754533422743,0.4693,3675.8,3675.6,2.72063971]
[1754533423101,0.001,3675.8,3675.7,2.72057023]
[1754533424005,0.001,3675.8,3675.7,3.20757023]
[1754533424201,0.001,3675.8,3675.7,2.72057023]
[1754533425025,0.001,3675.8,3675.7,3.20757023]
[1754533425513,0.001,3675.8,3675.7,2.72057023]
[1754533429657,0.4693,3675.8,3675.7,2.72057023]
[1754533432459,0.9133,3675.8,3675.6,2.72062208]
[1754533432759,0.9133,3675.8,3675.6,2.72262208]
[1754533433764,0.9133,3675.8,3675.7,2.72057023]
[1754533433958,0.9133,3675.8,3675.6,2.72263452]
[1754533434474,0.9133,3675.8,3675.7,2.72057023]
[1754533436864,0.9133,3675.8,3675.6,2.72262384]
[1754533437628,0.9133,3675.8,3675.7,2.72057023]
[1754533437964,0.4693,3675.8,3675.7,2.72057023]
[1754533438127,0.4693,3675.8,3675.6,2.72263323]
[1754533438845,0.4992,3675.8,3675.6,2.72263323]
[1754533439163,0.444,3675.7,3675.6,2.72263323]
[1754533439358,0.4982,3675.7,3675.6,2.72263323]
[1754533439530,0.4992,3675.8,3675.7,2.72057023]
[1754533439731,0.445,3675.8,3675.7,2.72057023]
[1754533440366,0.9432,3675.8,3675.6,2.72262828]
[1754533440665,0.9422,3675.7,3675.6,2.72262828]
[1754533441086,3.66277023,3675.7,3675.6,0.002]
[1754533441294,8.20441354,3675.7,3675.6,0.002]
[1754533445485,5.48384331,3675.7,3675.6,0.002]
[1754533445648,4.273,3675.7,3675.6,0.002]
[1754533446967,4.7712,3675.7,3675.6,0.002]
[1754533447188,5.2152,3675.7,3675.6,0.002]
[1754533450195,18.32843308,3675.7,3675.6,0.002]
[1754533450357,21.32843308,3675.7,3675.6,0.002]
[1754533450561,23.73341973,3675.7,3675.6,0.002]
[1754533451187,13.34075688,3675.7,3675.6,0.002]
[1754533454280,24.28341973,3675.7,3675.6,0.002]
[1754533460169,31.46341973,3675.7,3675.6,0.002]
[1754533461282,31.32741973,3675.7,3675.6,0.002]
[1754533462509,31.32741973,3675.7,3675.6,1e-08]
[1754533462706,31.68368156,3675.7,3675.6,1e-08]
[1754533463009,6.27064424,3675.6,3675.5,1e-08]
[1754533463207,8.9993061,3675.6,3675.5,1e-08]
[1754533463501,9.9503061,3675.6,3675.5,1e-08]
[1754533463708,10.0593841,3675.6,3675.5,1e-08]
[1754533464885,6.27071826,3675.5,3675.4,1e-08]
[1754533465075,14.44364195,3675.5,3675.4,1e-08]
[1754533465273,21.62364195,3675.5,3675.4,1e-08]
[1754533465506,21.73271895,3675.5,3675.4,1e-08]
[1754533469399,13.28845712,3675.5,3675.4,1e-08]
[1754533469600,16.76638012,3675.5,3675.4,1e-08]
[1754533469777,19.76638012,3675.5,3675.4,1e-08]
[1754533469978,20.31638012,3675.5,3675.4,1e-08]
[1754533470485,12.62938012,3675.5,3675.4,1e-08]
[1754533470702,14.03771826,3675.5,3675.4,0.46520001]
[1754533470915,17.03771826,3675.5,3675.4,0.92390001]
[1754533471423,17.17371826,3675.5,3675.4,0.46520001]
[1754533471721,15.06296225,3675.5,3675.4,0.46520001]
[1754533471897,18.06296225,3675.5,3675.4,0.46520001]
[1754533472345,10.88296225,3675.5,3675.4,0.46520001]
[1754533472528,11.43296225,3675.5,3675.4,1e-08]
[1754533472710,11.92806225,3675.5,3675.4,1e-08]
[1754533473316,11.43296225,3675.5,3675.4,1e-08]
[1754533474014,11.43296225,3675.5,3675.4,0.46520001]
[1754533474219,11.43296225,3675.5,3675.4,1e-08]
[1754533475121,6.74596225,3675.5,3675.4,1e-08]
[1754533475300,10.88296225,3675.5,3675.4,1e-08]
[1754533476415,7.24106225,3675.5,3675.4,1e-08]
[1754533476622,11.37806225,3675.5,3675.4,1e-08]
[1754533477430,11.83396225,3675.5,3675.4,1e-08]
[1754533478125,10.88296225,3675.5,3675.4,1e-08]
[1754533478649,10.88196225,3675.5,3675.4,1e-08]
[1754533479544,6.74596225,3675.5,3675.4,1e-08]
[1754533479747,10.88196225,3675.5,3675.4,1e-08]
[1754533480436,11.37706225,3675.5,3675.4,1e-08]
[1754533482171,11.92706225,3675.5,3675.4,1e-08]
[1754533482321,12.38296225,3675.5,3675.4,1e-08]
[1754533482660,12.73922408,3675.5,3675.4,1e-08]
[1754533482831,6.27101439,3675.1,3675.0,1e-08]
[1754533483018,6.27101439,3675.1,3674.4,0.002]
[1754533483019,3.55,3675.0,3674.4,0.002]
[1754533483220,16.66397343,3674.7,3674.4,0.002]
[1754533483439,20.93597343,3674.7,3674.4,0.002]
[1754533483625,23.4324132,3674.7,3674.4,0.002]
[1754533483833,24.3834132,3674.7,3674.4,0.002]
[1754533484150,24.52307502,3674.7,3674.4,0.002]
[1754533484649,3.2714587,3674.5,3674.4,0.002]
[1754533484863,10.34026819,3674.5,3674.4,0.002]
[1754533485017,11.42726819,3674.5,3674.4,0.002]
[1754533485558,14.42726819,3674.5,3674.4,0.002]
[1754533486253,14.78353002,3674.5,3674.4,1e-08]
[1754533486756,10.08291207,3674.5,3674.4,1e-08]
[1754533487059,14.21891207,3674.5,3674.4,1e-08]
[1754533487855,13.26791207,3674.5,3674.4,1e-08]
[1754533488058,10.5434587,3674.5,3674.4,0.46520001]
[1754533488423,10.5434587,3674.5,3674.4,1e-08]
[1754533489428,11.4944587,3674.5,3674.4,1e-08]
[1754533490859,6.4074587,3674.5,3674.4,1e-08]
[1754533491149,12.60291516,3674.5,3674.4,1e-08]
[1754533492149,13.52701516,3674.5,3674.4,1e-08]
[1754533496754,12.60291516,3674.5,3674.4,1e-08]
[1754533496957,12.60391516,3674.5,3674.4,1e-08]
[1754533497159,13.10001516,3674.5,3674.4,1e-08]
[1754533497657,8.46691516,3674.5,3674.4,1e-08]
[1754533497952,12.60391516,3674.5,3674.4,1e-08]
[1754533499629,13.52801516,3674.5,3674.4,1e-08]
[1754533499828,12.60391516,3674.5,3674.4,1e-08]
[1754533500357,13.10001516,3674.5,3674.4,1e-08]
[1754533500566,13.52801516,3674.5,3674.4,1e-08]
[1754533501527,20.70801516,3674.5,3674.4,1e-08]
[1754533501973,19.78391516,3674.5,3674.4,1e-08]
[1754533502562,15.09691516,3674.5,3674.4,1e-08]
[1754533502742,13.0384587,3674.5,3674.4,0.90000001]
[1754533502942,17.1754587,3674.5,3674.4,0.90000001]
[1754533503547,17.1754587,3674.5,3674.4,0.47120001]
[1754533504265,17.1754587,3674.5,3674.4,1e-08]
[1754533505550,13.0384587,3674.5,3674.4,1e-08]
[1754533505752,19.88311275,3674.5,3674.4,1e-08]
[1754533506465,17.1754587,3674.5,3674.4,1e-08]
[1754533506767,17.1754587,3674.5,3674.4,0.47120001]
[1754533506971,7.317,3674.5,3674.4,1e-08]
[1754533507173,14.1754587,3674.5,3674.4,1e-08]
[1754533507469,18.86513572,3674.5,3674.4,1e-08]
[1754533508338,14.72813572,3674.5,3674.4,1e-08]
[1754533508542,18.86513572,3674.5,3674.4,1e-08]
[1754533509429,17.1754587,3674.5,3674.4,0.90000001]
[1754533509743,17.1754587,3674.5,3674.4,0.47120001]
[1754533510187,17.1754587,3674.5,3674.4,1e-08]
[1754533510478,18.6495587,3674.5,3674.4,1e-08]
[1754533510638,21.37822056,3674.5,3674.4,1e-08]
[1754533512157,31.76988341,3674.5,3674.4,1e-08]
[1754533513156,32.12614524,3674.5,3674.4,1e-08]
[1754533514747,20.81422056,3674.5,3674.4,1e-08]
[1754533515062,20.95022056,3674.5,3674.4,1e-08]
[1754533515261,21.37822056,3674.5,3674.4,1e-08]
[1754533521275,21.73448239,3674.5,3674.4,1e-08]
[1754533521661,6.27160683,3674.3,3674.2,1e-08]
[1754533521854,27.98126968,3674.3,3674.2,1e-08]
[1754533522052,28.89326968,3674.3,3674.2,1e-08]
[1754533522251,6.27175498,3674.1,3674.0,1e-08]
[1754533522560,13.13741684,3674.1,3674.0,1e-08]
[1754533522762,14.54167867,3674.1,3674.0,1e-08]
[1754533523085,14.18541684,3674.1,3674.0,1e-08]
[1754533524360,13.27341684,3674.1,3674.0,1e-08]
[1754533524856,13.75191684,3674.1,3674.0,1e-08]
[1754533525680,14.18541684,3674.1,3674.0,1e-08]
[1754533525860,14.87790324,3674.1,3674.0,1e-08]
[1754533526883,14.54167867,3674.1,3674.0,1e-08]
[1754533527457,14.18541684,3674.1,3674.0,1e-08]
[1754533527883,13.27341684,3674.1,3674.0,1e-08]
[1754533528251,13.75191684,3674.1,3674.0,1e-08]
[1754533528454,14.18541684,3674.1,3674.0,1e-08]
[1754533529277,14.54167867,3674.1,3674.0,1e-08]
[1754533529456,14.87790324,3674.1,3674.0,1e-08]
[1754533532590,20.9380106,3673.3,3673.2,0.002]
[1754533535275,20.9380106,3673.3,3673.2,0.4575]
[1754533535475,20.9380106,3673.3,3673.2,0.002]
[1754533535698,23.35188692,3673.3,3673.2,0.002]
[1754533539813,24.26388692,3673.3,3673.2,0.002]
[1754533545778,31.44388692,3673.3,3673.2,0.002]
[1754533546082,30.53188692,3673.3,3673.2,0.002]
[1754533547382,31.01038692,3673.3,3673.2,0.002]
[1754533547921,30.53188692,3673.3,3673.2,0.002]
[1754533548115,16.00222407,3673.3,3673.2,0.002]
[1754533548279,16.00222407,3673.3,3673.2,0.8975]
[1754533548280,17.17634775,3673.3,3673.2,0.8975]
[1754533548796,10.03834775,3673.3,3673.2,0.8975]
[1754533548997,14.17634775,3673.3,3673.2,0.002]
[1754533549192,17.17634775,3673.3,3673.2,0.002]
[1754533549704,13.03834775,3673.3,3673.2,0.002]
[1754533550021,17.17634775,3673.3,3673.2,0.4641]
[1754533552120,17.17634775,3673.3,3673.2,0.9265]
[1754533552284,13.03834775,3673.3,3673.2,0.9265]
[1754533552485,17.17534775,3673.3,3673.2,0.9265]
[1754533552706,13.03834775,3673.3,3673.2,0.9265]
[1754533552903,17.17534775,3673.3,3673.2,0.9265]
[1754533553500,17.17534775,3673.3,3673.2,0.4641]
[1754533558442,17.17534775,3673.3,3673.2,0.002]
[1754533562229,13.03834775,3673.3,3673.2,0.4641]
[1754533562548,17.17534775,3673.3,3673.2,0.4641]
[1754533562755,7.316,3673.3,3673.2,0.9265]
[1754533563060,11.453,3673.3,3673.2,0.9265]
[1754533563259,7.316,3673.3,3673.2,0.9265]
[1754533563443,11.453,3673.3,3673.2,0.9265]
[1754533564338,14.17534775,3673.3,3673.2,0.9265]
[1754533565577,4.273,3673.3,3673.2,0.9265]
[1754533565777,17.3880106,3673.3,3673.2,0.002]
[1754533565979,22.0045238,3673.3,3673.2,0.002]
[1754533566183,22.5545238,3673.3,3673.2,0.002]
[1754533566980,22.6636578,3673.3,3673.2,0.002]
[1754533567679,23.01991963,3673.3,3673.2,0.002]
[1754533570305,22.6636578,3673.3,3673.2,0.002]
[1754533573726,22.2324578,3673.3,3673.2,0.002]
[1754533574112,22.6636578,3673.3,3673.2,0.002]
[1754533581961,7.21709495,3673.3,3673.2,0.002]
[1754533582119,10.65448175,3673.3,3673.2,0.4797]
[1754533582554,10.65448175,3673.3,3673.2,0.9073]
[1754533582754,10.65448175,3673.3,3673.2,0.4797]
[1754533585856,5.96748175,3673.3,3673.2,0.4797]
[1754533586058,9.99434775,3673.3,3673.2,0.4797]
[1754533586668,9.99434775,3673.3,3673.2,0.9073]
[1754533587235,9.99434775,3673.3,3673.2,0.4797]
[1754533589672,9.99434775,3673.3,3673.2,0.002]
[1754533589968,10.47404775,3673.3,3673.2,0.002]
[1754533595207,10.92704775,3673.3,3673.2,0.002]
[1754533596500,23.82563205,3673.3,3673.2,0.002]
[1754533596703,24.28373205,3673.3,3673.2,0.002]
[1754533597779,23.82563205,3673.3,3673.2,0.002]
[1754533597977,21.8697106,3673.3,3673.2,0.002]
[1754533599307,22.3278106,3673.3,3673.2,0.002]
[1754533608818,22.3278106,3673.3,3673.1,1e-08]
[1754533608819,6.27242186,3673.2,3673.1,1e-08]
[1754533609119,6.27294077,3672.5,3672.4,0.002]
[1754533609283,20.80060362,3672.5,3672.4,0.002]
[1754533609489,21.84770362,3672.5,3672.4,0.002]
[1754533609881,22.32540362,3672.5,3672.4,0.002]
[1754533610087,24.83022859,3672.5,3672.4,0.002]
[1754533610520,24.37212859,3672.5,3672.4,0.002]
[1754533610818,6.88664077,3672.5,3672.4,0.478]
[1754533611022,11.02164077,3672.5,3672.4,0.95]
[1754533611225,6.33664077,3672.5,3672.4,0.002]
[1754533611420,22.33181859,3672.5,3672.4,0.002]
[1754533611922,23.82391859,3672.5,3672.4,0.002]
[1754533612123,24.29991859,3672.5,3672.4,0.002]
[1754533612783,12.96515574,3672.5,3672.4,0.002]
[1754533612985,10.46994077,3672.5,3672.4,0.95]
[1754533613187,10.46994077,3672.5,3672.4,0.478]
[1754533613608,10.46994077,3672.5,3672.4,0.95]
[1754533613810,10.46994077,3672.5,3672.4,0.478]
[1754533614019,10.46994077,3672.5,3672.4,0.002]
[1754533614636,20.86260362,3672.5,3672.4,0.002]
[1754533615530,14.00466285,3672.5,3672.4,0.478]
[1754533615737,7.271,3672.5,3672.4,0.95]
[1754533615939,9.99394077,3672.5,3672.4,0.002]
[1754533616734,20.87090362,3672.5,3672.4,0.002]
[1754533617035,24.33165441,3672.5,3672.4,0.002]
[1754533618023,23.38955441,3672.5,3672.4,0.002]
[1754533619515,24.33165441,3672.5,3672.4,0.002]
[1754533623408,23.87385441,3672.5,3672.4,0.002]
[1754533626349,24.33165441,3672.5,3672.4,0.002]
[1754533628959,23.38955441,3672.5,3672.4,0.002]
[1754533629861,23.87385441,3672.5,3672.4,0.002]
[1754533630063,24.33165441,3672.5,3672.4,0.002]
[1754533630429,13.93899156,3672.5,3672.4,0.002]
[1754533630829,13.48119156,3672.5,3672.4,0.002]
[1754533631256,12.99689156,3672.5,3672.4,0.002]
[1754533632264,13.48119156,3672.5,3672.4,0.002]
[1754533632434,9.34619156,3672.5,3672.4,0.002]
[1754533632659,13.48119156,3672.5,3672.4,0.002]
[1754533633967,12.99689156,3672.5,3672.4,0.002]
[1754533634171,10.54394077,3672.5,3672.4,0.002]
[1754533634370,11.02824077,3672.5,3672.4,0.002]
[1754533634672,18.20824077,3672.5,3672.4,0.002]
[1754533636274,11.02824077,3672.5,3672.4,0.002]
[1754533636642,11.48604077,3672.5,3672.4,0.002]
[1754533636840,13.53599156,3672.5,3672.4,0.002]
[1754533637972,13.05169156,3672.5,3672.4,0.002]
[1754533640351,10.54394077,3672.5,3672.4,0.002]
[1754533640676,11.47524077,3672.5,3672.4,0.002]
[1754533642159,11.00274077,3672.5,3672.4,0.002]
[1754533642503,10.54394077,3672.5,3672.4,0.002]
[1754533643001,10.65308777,3672.5,3672.4,0.002]
[1754533643791,6.51808777,3672.5,3672.4,0.002]
[1754533644007,10.65208777,3672.5,3672.4,0.002]
[1754533645607,11.58338777,3672.5,3672.4,0.002]
[1754533645812,14.05327326,3672.5,3672.4,0.002]
[1754533646712,13.58077326,3672.5,3672.4,0.002]
[1754533647011,10.65208777,3672.5,3672.4,0.002]
[1754533650415,0.136,3672.5,3672.4,0.4742]
[1754533650617,0.136,3672.5,3672.4,0.9285]
[1754533650817,0.136,3672.5,3672.4,3.65151492]
[1754533650818,4.134,3672.5,3672.4,3.65151492]
[1754533651018,4.134,3672.5,3672.4,1.56596636]
[1754533651188,4.134,3672.5,3672.4,4.28898128]
[1754533651920,4.134,3672.5,3672.4,1.56596636]
[1754533653112,4.134,3672.6,3672.4,4.28898128]
[1754533653289,4.134,3672.6,3672.4,3.36248128]
[1754533653492,4.134,3672.6,3672.5,0.9265]
[1754533654822,4.134,3672.6,3672.5,3.64944077]
[1754533655521,4.134,3672.6,3672.5,0.9265]
[1754533656292,4.133,3672.6,3672.5,0.9265]
[1754533658225,4.269,3672.7,3672.5,0.9265]
[1754533658426,0.136,3672.7,3672.5,0.9265]
[1754533658627,4.269,3672.7,3672.6,0.4722]
[1754533659328,4.269,3672.7,3672.4,0.4742]
[1754533660827,0.136,3672.7,3672.4,0.4742]
[1754533661015,0.136,3672.7,3672.4,0.002]
[1754533661219,4.133,3672.6,3672.5,0.4722]
[1754533661419,4.133,3672.6,3672.4,0.002]
[1754533661618,4.133,3672.6,3672.4,0.4742]
[1754533662018,4.133,3672.6,3672.4,0.002]
[1754533664127,4.133,3672.6,3672.4,0.4742]
[1754533666434,4.133,3672.6,3672.4,0.002]
[1754533667432,4.133,3672.6,3672.4,0.4742]
[1754533667842,0.136,3672.7,3672.5,0.4722]
[1754533668045,0.001,3672.8,3672.5,0.4722]
[1754533668046,0.001,3672.8,3672.7,2.72279249]
[1754533668739,0.001,3672.8,3672.7,3.64929249]
[1754533668940,0.001,3672.8,3672.7,0.9265]
[1754533669123,0.001,3672.8,3672.7,0.4722]
[1754533669822,0.001,3672.8,3672.7,3.19499249]
[1754533670011,0.001,3672.8,3672.7,4.25058497]
[1754533671444,0.001,3672.8,3672.7,4.38658497]
[1754533674465,0.001,3672.8,3672.7,4.25058497]
[1754533674617,0.001,3672.8,3672.7,4.38658497]
[1754533681620,0.001,3672.8,3672.7,7.41381289]
[1754533681843,1e-08,3672.8,3672.7,7.38658497]
[1754533682731,1e-08,3672.8,3672.7,7.93658497]
[1754533682935,1e-08,3672.8,3672.7,8.04565597]
[1754533684256,0.001,3673.6,3672.7,8.04565597]
[1754533684257,0.001,3673.6,3673.5,13.11486238]
[1754533684456,0.001,3673.6,3673.5,17.24486238]
[1754533684660,0.001,3673.6,3673.5,18.32686238]
[1754533686180,0.001,3674.0,3673.5,18.32686238]
[1754533686181,0.001,3674.0,3673.9,2.72190315]
[1754533686331,0.001,3674.0,3673.9,17.27178503]
[1754533686529,0.001,3674.0,3673.9,18.93215848]
[1754533688947,0.001,3674.0,3673.9,19.42195848]
[1754533690232,0.001,3674.0,3673.9,22.97195848]
[1754533690731,0.001,3674.4,3674.3,2.72160683]
[1754533690936,0.001,3674.4,3674.3,17.24326968]
[1754533691144,0.001,3674.4,3674.3,22.67816938]
[1754533692683,0.001,3674.4,3674.3,22.88037055]
[1754533693565,0.001,3674.4,3674.3,22.43037055]
[1754533693735,1e-08,3674.4,3674.3,22.88037055]
[1754533694868,1e-08,3674.4,3674.3,22.98939355]
[1754533695268,1e-08,3674.4,3674.3,18.86039355]
[1754533695462,1e-08,3674.4,3674.3,22.98839355]
[1754533696574,1e-08,3674.9,3674.8,0.55]
[1754533696760,0.4449,3676.1,3675.4,5.72079229]
[1754533696935,0.001,3676.6,3675.4,20.24145514]
[1754533697143,0.4898,3675.8,3675.4,20.62695514]
[1754533698479,0.4898,3675.8,3675.4,21.12295514]
[1754533698686,0.4898,3675.8,3675.4,21.40141656]
[1754533701665,0.4898,3675.8,3675.4,20.90541656]
[1754533702765,0.4597,3675.7,3675.4,20.90541656]
[1754533705179,0.001,3675.7,3675.4,20.90541656]
[1754533705381,0.001,3675.7,3675.4,21.82811656]
[1754533705768,1e-08,3675.5,3675.4,21.82811656]
[1754533706802,1e-08,3675.5,3675.4,22.24211656]
[1754533707011,1e-08,3675.5,3675.4,22.37811656]
[1754533707190,0.92410001,3675.5,3675.4,10.51075371]
[1754533708110,0.45870001,3675.5,3675.4,10.51075371]
[1754533708405,1e-08,3675.5,3675.4,10.51075371]
[1754533709660,0.92410001,3675.5,3675.4,10.51075371]
[1754533710491,0.45870001,3675.5,3675.4,10.51075371]
[1754533712178,0.92410001,3675.5,3675.4,10.51075371]
[1754533712803,1e-08,3675.5,3675.4,10.51075371]
[1754533712982,0.92410001,3675.5,3675.4,10.37475371]
[1754533713184,0.92510001,3675.5,3675.4,10.37475371]
[1754533713592,0.92510001,3675.5,3675.4,6.84679229]
[1754533715071,0.92510001,3675.5,3675.4,2.72079229]
[1754533718012,0.92510001,3675.5,3675.3,6.84685163]
[1754533718216,0.9241,3675.4,3675.3,6.84685766]
[1754533720434,0.9241,3675.4,3675.3,2.72085766]
[1754533720782,0.9241,3675.4,3675.2,4.126]
[1754533720987,0.9241,3675.3,3674.8,0.002]
[1754533721288,0.9241,3675.2,3674.8,2.72317166]
[1754533721488,0.9241,3675.1,3674.8,2.72317166]
[1754533721689,1.0405663,3675.5,3674.8,2.72317166]
[1754533722019,0.9241,3675.0,3674.9,2.72116248]
[1754533722221,1.0405663,3675.5,3674.9,2.72116248]
[1754533722518,5.06038629,3675.4,3674.8,0.002]
[1754533722892,0.136,3675.0,3674.8,0.002]
[1754533723093,0.136,3675.0,3674.8,2.72321969]
[1754533723294,0.9241,3674.9,3674.8,2.72321969]
[1754533725417,0.136,3675.0,3674.8,2.72321969]
[1754533725619,0.00100001,3675.5,3675.1,2.72095604]
[1754533725818,0.136,3675.4,3675.1,2.72095604]
[1754533726206,0.136,3675.4,3674.9,2.72116248]
[1754533726407,0.9241,3675.3,3674.9,2.72109078]
[1754533726610,0.9241,3675.2,3675.1,2.72101439]
[1754533729022,0.9241,3675.2,3674.8,4.264]
[1754533729221,0.136,3675.4,3675.1,2.72094339]
[1754533729418,0.136,3675.4,3675.3,2.72086632]
[1754533730015,0.136,3675.4,3675.2,2.72092878]
[1754533730406,0.9072,3675.3,3675.0,2.72102739]
[1754533730602,0.136,3675.4,3675.0,2.72102739]
[1754533730802,0.9072,3675.2,3675.1,2.72101439]
[1754533731005,0.9072,3675.2,3675.0,2.72103455]
[1754533731216,0.9072,3675.1,3674.9,2.72115593]
[1754533731532,0.9072,3675.0,3674.9,2.72115593]
[1754533735341,0.9072,3675.0,3674.9,2.72315593]
[1754533737854,0.4751,3675.2,3675.0,2.72107785]
[1754533738230,0.4751,3675.2,3675.1,2.72101439]
[1754533738231,0.4321,3675.2,3675.1,2.72101439]
[1754533738922,0.9072,3675.2,3675.1,2.72101439]
[1754533739098,0.9072,3675.2,3675.0,2.72106737]
[1754533739428,0.136,3675.4,3675.1,2.72101439]
[1754533740007,0.9072,3675.3,3675.0,2.72108843]
[1754533740210,0.136,3675.4,3675.2,2.72089727]
[1754533740410,0.13700001,3675.5,3675.4,2.72079229]
[1754533741214,0.00100001,3675.5,3675.4,2.72079229]
[1754533742230,0.47610001,3675.5,3675.4,2.72079229]
[1754533743045,0.00100001,3675.5,3675.4,2.72079229]
[1754533743356,0.00100001,3675.5,3675.4,3.32662524]
[1754533743522,0.00100001,3675.5,3675.4,3.80722524]
[1754533743724,0.00100001,3675.5,3675.4,4.25002524]
[1754533743931,0.00100001,3675.5,3675.4,4.38602524]
[1754533746425,0.00100001,3675.5,3675.4,3.94322524]
[1754533747123,0.00100001,3675.5,3675.4,3.46262524]
[1754533747327,0.47610001,3675.5,3675.4,6.98179229]
[1754533747531,0.90820001,3675.5,3675.4,6.98179229]
[1754533747889,0.00100001,3675.5,3675.4,7.46239229]
[1754533748175,0.00100001,3675.5,3675.4,7.90519229]
[1754533748374,0.00100001,3675.5,3675.4,8.53671563]
[1754533748580,0.00100001,3675.5,3675.4,8.97951563]
[1754533748722,0.00100001,3675.5,3675.4,8.05611563]
[1754533749438,0.00100001,3675.5,3675.4,8.53671563]
[1754533749869,0.00100001,3675.5,3675.4,8.97951563]
[1754533750220,0.00100001,3675.5,3675.4,19.37217848]
[1754533751234,1e-08,3675.5,3675.4,22.37217848]
[1754533751451,1e-08,3675.7,3675.6,5.72064424]
[1754533751652,1e-08,3675.7,3675.6,10.17981308]
[1754533751875,1e-08,3675.7,3675.6,10.31581308]
[1754533752085,1e-08,3675.7,3675.6,11.23921308]
[1754533756718,1e-08,3675.7,3675.6,10.79641308]
[1754533757456,1e-08,3675.7,3675.6,10.31581308]
[1754533758186,1e-08,3675.7,3675.6,10.79641308]
[1754533760848,1e-08,3675.7,3675.6,10.31581308]
[1754533762134,0.90960001,3675.7,3675.6,6.19081308]
[1754533762443,0.90960001,3675.7,3675.6,6.98064424]
[1754533764853,0.45710001,3675.7,3675.6,6.98064424]
[1754533765256,1e-08,3675.7,3675.6,6.98064424]
[1754533771056,0.45710001,3675.7,3675.6,6.98064424]
[1754533773568,1e-08,3675.7,3675.6,6.98064424]
[1754533775662,1e-08,3675.7,3675.6,8.47183789]
[1754533776040,1e-08,3675.7,3675.6,7.99833789]
[1754533776931,0.45710001,3675.7,3675.6,7.99833789]
[1754533777763,1e-08,3675.7,3675.6,7.99833789]
[1754533778852,0.45710001,3675.7,3675.6,7.99833789]
[1754533779053,0.45710001,3675.7,3675.6,6.98264424]
[1754533779054,0.90960001,3675.7,3675.6,6.98264424]
[1754533780550,1e-08,3675.7,3675.6,7.45614424]
[1754533781262,1e-08,3675.7,3675.6,6.98264424]
[1754533781965,0.90960001,3675.7,3675.6,6.98264424]
[1754533783751,0.45710001,3675.7,3675.6,6.98264424]
[1754533783951,1e-08,3675.7,3675.6,7.95318789]
[1754533787186,1e-08,3675.7,3675.6,8.42668789]
[1754533787375,1e-08,3675.7,3675.6,11.86198789]
[1754533790285,1e-08,3675.7,3675.6,11.42668789]
[1754533791371,1e-08,3675.7,3675.6,10.95318789]
[1754533792285,1e-08,3675.7,3675.6,11.42048789]
[1754533798199,1e-08,3675.7,3675.6,10.95318789]
[1754533799002,1e-08,3675.7,3675.6,11.06218989]
[1754533799699,1e-08,3675.7,3675.6,5.96764624]
[1754533799900,0.92640001,3675.7,3675.6,9.98164424]
[1754533801369,1e-08,3675.7,3675.6,9.98164424]
[1754533801986,0.92640001,3675.7,3675.6,9.98164424]
[1754533804005,0.92640001,3675.7,3675.6,6.98164424]